Cogmind - Beta 13 @@@ ROGUE MODE // 2024.04.26 @ 13:11:00 Player: Kate+Gabe4evr Result: Destroyed by S-27 Virus with Autogun Performance ------------- Evolutions (3) 1500 Regions Visited (5) 1000 Robots Destroyed (60) 300 Value Destroyed (1495) 1495 Prototype IDs (3) 60 Alien Tech Used (0) 0 Bonus (579) 579 TOTAL SCORE: 4934 Bonus ------- High Alert Combat Kills 379 Entered Garrisons 200 Cogmind --------- Core Integrity 0/700 Matter 27/300 Energy 100/100 System Corruption 0% Temperature Cool (0) Movement Core (50) Location -7/Factory Parts ------- > --- POWER (2) -------- (None) > --- PROPULSION (6) --- (None) > --- UTILITY (3) ------ Advanced Targeting Computer > --- WEAPON (2) ------- Spear > --- INVENTORY (5) ---- Hybrid Deuterium Engine Medium Laser Flak Gun Improved Light Cannon Peak State ------------ > --- POWER ------------ Hybrid Deuterium Engine > --- PROPULSION ------- Improved Flight Unit Improved Flight Unit Improved Flight Unit Improved Flight Unit Improved Flight Unit > --- UTILITY ---------- Cryofiber Web Medium Storage Unit Improved Targeting Computer > --- WEAPON ----------- Flak Gun Flak Gun > --- INVENTORY -------- Ion Engine Light Ion Engine Improved Flight Unit Improved Flight Unit EM Pulse Gun Medium Laser Flak Gun Flak Gun Improved Light Cannon [Rating: 35] Favorites ----------- Power Light Ion Engine Engine Light Ion Engine Power Core Light Nuclear Core Propulsion Improved Flight Unit Wheel Wheel Flight Unit Improved Flight Unit Utility Improved Targeting Computer Device Cryofiber Web Storage Medium Storage Unit Processor Improved Targeting Computer Protection Light Armor Plating Weapon Flak Gun Energy Gun Medium Laser Ballistic Gun Flak Gun Ballistic Cannon Improved Light Cannon Launcher Heavy Missile Launcher Piercing Weapon Spear Build | -11 -10 -9 -8 -8 -7 ------- Run | Yrd Mat Mat Mat Gar Fac Slots Evolved 6 | . . 2 2 . 2 Power 1 | . . . . . 1 Propulsion 4 | . . 1 2 . 1 Utility 1 | . . 1 . . . Weapon . | . . . . . . Parts Attached 52 | 6 6 6 9 19 6 Power 14 | 1 1 . 3 7 2 Engine 8 | 1 1 . 3 3 . Core 6 | . . . . 4 2 Reactor . | . . . . . . Propulsion 15 | 2 1 4 2 5 1 Treads . | . . . . . . Leg . | . . . . . . Wheel 3 | 2 1 . . . . Hover . | . . . . . . Flight 12 | . . 4 2 5 1 Utility 7 | 1 2 1 2 . 1 Device 1 | . . . 1 . . Storage 2 | 1 . . 1 . . Processor 2 | . . 1 . . 1 Hackware . | . . . . . . Protection 2 | . 2 . . . . Artifact . | . . . . . . Weapon 16 | 2 2 1 2 7 2 Energy Gun 4 | 1 1 1 . 1 . Energy Cannon . | . . . . . . Ballistic Gun 8 | 1 1 . 2 4 . Ballistic Cannon 2 | . . . . 2 . Launcher 1 | . . . . . 1 Special Weapon . | . . . . . . Impact Weapon . | . . . . . . Slashing Weapon . | . . . . . . Piercing Weapon 1 | . . . . . 1 Special Melee Weapon . | . . . . . . Unidentified Prototypes 1 | . . 1 . . . Parts Lost 22 | . . . 2 9 11 Power 6 | . . . 1 3 2 Propulsion 9 | . . . . 3 6 Utility 3 | . . . 1 . 2 Weapon 4 | . . . . 3 1 Highest Loss Streak 5 | . . . 1 4 5 To Critical Strikes . | . . . . . . Average Slot Usage (%) 89 | . 88 80 99 98 55 Engine 6 | . 13 11 8 2 . Core 3 | . . . . 6 6 Wheel 7 | . 27 5 . . . Flight 28 | . . 16 45 44 26 Device 4 | . . . 4 9 2 Storage 9 | . 14 11 9 9 2 Processor 5 | . . 2 9 9 6 Protection 2 | . 4 11 4 . . Energy Gun 5 | . 13 11 . 1 2 Ballistic Gun 12 | . 13 11 17 13 . Ballistic Cannon 1 | . . . . 2 2 Naked Turns . | . . . . . . Heaviest Build 27 | 12 15 16 24 26 27 Greatest Support 28 | 26 26 26 25 25 28 Greatest Overweight (x) 4 | 3 . 4 . 1 1 Average Overweight (x) . | . . . . . . Largest Inventory Capacity 10 | 8 8 8 10 10 10 Average Capacity 8 | 7 8 8 9 10 6 Most Carried 10 | 1 6 8 10 10 8 Average Carried 6 | . 5 6 8 7 4 Final Capacity 10 | 8 8 8 10 10 5 Final Carried 10 | 1 5 8 10 6 4 Class Distribution -------------------- 50% | Sprinter 47% | Mutant Dominant Class ---------------- Mutant | -10/Materials Mutant | -9/Materials Sprinter | -8/Materials Sprinter | -8/Garrison Mutant | -7/Factory Resources | -11 -10 -9 -8 -8 -7 ----------- Run | Yrd Mat Mat Mat Gar Fac Matter Collected 1249 | 222 154 19 122 718 14 Remotely . | . . . . . . Salvage Created 1418 | . 246 19 226 716 211 Parts 113 | . 18 3 16 58 18 Haulers Intercepted 1 | . . . 1 . . Recyclers Shooed . | . . . . . . Parts Field Recycled . | . . . . . . Retrieved Matter . | . . . . . . Parts Self-Destructed . | . . . . . . Prevented . | . . . . . . Kills | -11 -10 -9 -8 -8 -7 ------- Run | Yrd Mat Mat Mat Gar Fac Combat Hostiles Destroyed 54 | . 7 . 10 30 7 Melee 7 | . . . . . 7 Guns 47 | . 7 . 10 30 . Classes Destroyed 11 | . 3 . 4 3 1 Worker 1 | . . . . . 1 Builder 1 | . . . 1 . . Hauler 1 | . . . 1 . . Operator 1 | . . . 1 . . Watcher 2 | . 1 1 . . . Swarmer 33 | . 3 . 9 15 6 Grunt 12 | . 4 . . 7 1 Duelist 1 | . . . . 1 . Sentry 3 | . . . 1 2 . Hunter 2 | . . . . 2 . Programmer 3 | . . . . 3 . Best Kill Streak 7 | . 5 1 6 7 7 Combat Bots Only 7 | . 4 . 5 7 7 Max Kills in Single Turn 3 | . 1 1 2 3 1 Gunslinging . | . . . . . . Exploded . | . . . . . . Melee 1 | . . . . . 1 Uniques/NPCs Destroyed . | . . . . . . Combat | -11 -10 -9 -8 -8 -7 -------- Run | Yrd Mat Mat Mat Gar Fac Hostile Shots Fired 414 | . 20 5 50 147 192 Missed 164 | . 6 3 24 42 89 Damage Taken 3139 | . 150 21 377 1333 1258 Core 1283 | . 43 10 106 409 715 Absorbed by Shields 51 | . . . . 51 . Core Remaining (%) 71 | 100 82 97 . 6 . Volleys Fired 130 | . 30 2 17 77 4 Largest 2 | . 2 2 2 2 1 Hottest 78 | . 70 76 56 78 39 Shots Fired 224 | . 53 4 34 129 4 Gun 197 | . 53 4 34 106 . Cannon 27 | . . . . 23 4 Launcher . | . . . . . . Special . | . . . . . . Kinetic 192 | . 30 2 34 122 4 Thermal 32 | . 23 2 . 7 . Explosive . | . . . . . . Electromagnetic . | . . . . . . Robot Hit Streak 9 | . 7 2 5 9 3 Robot Miss Streak 14 | . 12 1 11 14 1 Penetration Max . | . . . . . . Secondary Targets 6 | . . . 1 5 . Max Gunslinging Chain 1 | . . . 1 1 . Shots Hit Robots 152 | . 25 2 28 81 16 Core Hits 172 | . 14 1 31 116 10 Critical Kills . | . . . . . . Critical Parts Destroyed . | . . . . . . Critical Strikes 3 | . 1 . . 1 1 Burn 2 | . 1 . . 1 . Impale 1 | . . . . . 1 Melee Attacks 20 | . . . . . 20 Impact . | . . . . . . Slashing . | . . . . . . Piercing 20 | . . . . . 20 Sneak Attacks . | . . . . . . Combat Hostiles . | . . . . . . Follow-up Attacks . | . . . . . . Damage Inflicted 2574 | . 346 26 417 1368 417 Guns 2134 | . 341 26 417 1350 . Cannons 81 | . . . . 18 63 Explosions . | . . . . . . Melee 354 | . . . . . 354 Ramming 5 | . 5 . . . . Kinetic 2068 | . 243 14 417 1331 63 Thermal 147 | . 98 12 . 37 . Explosive . | . . . . . . Electromagnetic . | . . . . . . Impact . | . . . . . . Slashing . | . . . . . . Piercing 354 | . . . . . 354 Highest Corruption 6 | . . 4 1 6 . Average Corruption 4 | . . 4 1 4 . Corruption Purged . | . . . . . . Corruption Blocked . | . . . . . . Effects 21 | . . 1 . 20 . Message Errors 1 | . . . . 1 . Matter Fused 6 | . . . . 6 . Heat Flow Errors 4 | . . . . 4 . Energy Discharges 1 | . . . . 1 . Parts Rejected 2 | . . . . 2 . Data Loss (minor) 3 | . . . . 3 . Data Loss (major) 1 | . . 1 . . . Alerts 1 | . . . . 1 . Weapon Failures 2 | . . . . 2 . Overload Shots . | . . . . . . Overflow Damage 37 | . . . . . 37 Projectiles . | . . . . . . Explosions . | . . . . . . Melee 37 | . . . . . 37 Knockbacks 1 | . . . . 1 . Impact . | . . . . . . Kinetic 1 | . . . . 1 . Secondary . | . . . . . . Self-Inflicted Damage 2 | . 2 . . . . Shots . | . . . . . . Rammed 1 | . 1 . . . . Targets Rammed 1 | . 1 . . . . Kicked . | . . . . . . Crushed . | . . . . . . Highest Temperature 264 | . 83 24 11 264 131 Average Temperature 52 | . 26 10 3 75 43 Received Heat Transfer 700 | . 54 12 9 352 273 Effects 4 | . . . . 4 . Interference 4 | . . . . 4 . Siege Activations . | . . . . . . Robots Corrupted . | . . . . . . Combat Hostiles . | . . . . . . Parts Fried . | . . . . . . Impact Corruptions . | . . . . . . Robots Melted . | . . . . . . Combat Hostiles . | . . . . . . Parts Melted 1 | . 1 . . . . Heat Transferred 592 | . 370 37 . 185 . Parts Sabotaged . | . . . . . . Parts Stolen . | . . . . . . Parts Stripped . | . . . . . . Power Chain Reactions . | . . . . . . Alert | -11 -10 -9 -8 -8 -7 ------- Run | Yrd Mat Mat Mat Gar Fac Peak Influence 986 | . 218 42 499 986 877 Initial 517 | . . 20 17 326 517 Average 414 | . 85 31 169 734 600 Maximum Alert Level 3 | . 1 . 2 3 3 Low Security (%) 37 | 100 73 100 66 . . Level 1 13 | . 26 . 21 11 . Level 2 20 | . . . 11 22 86 Level 3 28 | . . . . 65 13 Level 4 . | . . . . . . Level 5 . | . . . . . . High Security . | . . . . . . Max Security . | . . . . . . Squads Dispatched 7 | . 2 . 2 . 3 Investigation . | . . . . . . Extermination . | . . . . . . Reinforcement 5 | . 2 . 2 . 1 Assault . | . . . . . . Garrison 2 | . . . . . 2 Intercept . | . . . . . . Searches Triggered . | . . . . . . Construction Impeded . | . . . . . . Haulers Reinforced . | . . . . . . Active Scanning Responses . | . . . . . . Cargo Convoy Interrupts . | . . . . . . Stealth | -11 -10 -9 -8 -8 -7 --------- Run | Yrd Mat Mat Mat Gar Fac Distress Signals 7 | . 2 1 2 . 2 Communications Jammed . | . . . . . . Distress Signals . | . . . . . . Times Spotted 102 | . 12 4 31 29 26 Peak Tracking Total 19 | . 6 5 19 7 13 Tactical Retreats 8 | . . . 4 . 4 Traps | -11 -10 -9 -8 -8 -7 ------- Run | Yrd Mat Mat Mat Gar Fac Traps Triggered 10 | . 2 . 1 7 . Indirectly . | . . . . . . Trap Hack Attempts . | . . . . . . Triggered . | . . . . . . Disarmed . | . . . . . . Reprogrammed . | . . . . . . Reused . | . . . . . . Traps Extracted . | . . . . . . Installed . | . . . . . . Triggered . | . . . . . . Machines | -11 -10 -9 -8 -8 -7 ---------- Run | Yrd Mat Mat Mat Gar Fac Machines Disabled 1 | . . . . 1 . Max in Single Turn 1 | . . . . 1 . Machines Repaired . | . . . . . . Machines Dismantled . | . . . . . . Machines Sabotaged . | . . . . . . Overloaded Fab Kills . | . . . . . . Hacking | -11 -10 -9 -8 -8 -7 --------- Run | Yrd Mat Mat Mat Gar Fac Machines Accessed 4 | . 1 . 2 1 . Terminals 3 | . 1 . 1 1 . Fabricators . | . . . . . . Repair Stations . | . . . . . . Recycling Units . | . . . . . . Scanalyzers . | . . . . . . Garrison Access 1 | . . . 1 . . Total Hacks 6 | . 1 . 2 3 . Successful 2 | . . . 2 . . Failed 4 | . 1 . . 3 . Catastrophic 1 | . . . . 1 . Database Lockouts . | . . . . . . Manual 1 | . 1 . . . . Terminals 5 | . 1 . 1 3 . Fabricators . | . . . . . . Repair Stations . | . . . . . . Recycling Units . | . . . . . . Scanalyzers . | . . . . . . Garrison Access 1 | . . . 1 . . Terminal Hacks 1 | . . . 1 . . Prototype ID Bank 1 | . . . 1 . . Fabricator Hacks . | . . . . . . Repair Station Hacks . | . . . . . . Recycling Unit Hacks . | . . . . . . Scanalyzer . | . . . . . . Garrison Access Hacks 1 | . . . 1 . . Unlock Access 1 | . . . 1 . . Unauthorized Hacks . | . . . . . . Terminals . | . . . . . . Fabricators . | . . . . . . Repair Stations . | . . . . . . Recycling Units . | . . . . . . Scanalyzers . | . . . . . . Garrison Access . | . . . . . . Data Cores Recovered 1 | . . . 1 . . Used . | . . . . . . Hacking Detections 1 | . . . . 1 . Full Trace Events 1 | . . . . 1 . Feedback Events . | . . . . . . Feedback Blocked . | . . . . . . Robot Schematics Acquired . | . . . . . . Robots Built . | . . . . . . Authchips . | . . . . . . Time . | . . . . . . Total Robot Build Rating . | . . . . . . Part Schematics Acquired . | . . . . . . Parts Built . | . . . . . . Authchips . | . . . . . . Time . | . . . . . . Total Part Build Rating . | . . . . . . Parts Repaired . | . . . . . . Time . | . . . . . . Parts Recycled . | . . . . . . Recycled Matter . | . . . . . . Retrieved Matter . | . . . . . . Retrieved Components . | . . . . . . Parts Scanalyzed . | . . . . . . Part Schematics Acquired . | . . . . . . Parts Damaged . | . . . . . . Bothacking | -11 -10 -9 -8 -8 -7 ------------ Run | Yrd Mat Mat Mat Gar Fac Used RIF Installer . | . . . . . . Robots Hacked . | . . . . . . Non-combat . | . . . . . . Combat . | . . . . . . Robot Hacks Applied . | . . . . . . Relay Couplers Released . | . . . . . . Fabnet Peak Effective % . | . . . . . . Robots Rewired 1 | . . . . . 1 Allies Hacked . | . . . . . . Hacks Repelled . | . . . . . . Allies | -11 -10 -9 -8 -8 -7 -------- Run | Yrd Mat Mat Mat Gar Fac Total Allies 1 | . . . . . 1 Largest Group 1 | . . . . . 1 Highest-Rated Group 21 | . . . . . 21 Highest-Rated Ally 21 | . . . . . 21 Total Orders . | . . . . . . Ally Attacks 7 | . . . . . 7 Total Damage 224 | . . . . . 224 Kills . | . . . . . . Allies Corrupted . | . . . . . . Allies Melted . | . . . . . . Intel | -11 -10 -9 -8 -8 -7 ------- Run | Yrd Mat Mat Mat Gar Fac Robot Analysis Total . | . . . . . . Derelict Logs Recovered . | . . . . . . Drone Launches . | . . . . . . Drone Recoveries . | . . . . . . Exploration | -11 -10 -9 -8 -8 -7 ------------- Run | Yrd Mat Mat Mat Gar Fac Turns Passed 1872 | 75 446 156 205 764 226 Spaces Moved 2788 | 54 350 172 469 1290 453 Core 26 | 20 . 6 . . . Treads . | . . . . . . Legs . | . . . . . . Wheels 431 | 34 350 47 . . . Hover . | . . . . . . Flight 2331 | . . 119 469 1290 453 Fastest Speed 25 | 50 90 34 28 28 25 Average Speed 41 | 121 90 75 28 28 31 Slowest Speed 250 | 200 100 250 28 104 100 Overloaded Moves . | . . . . . . Propulsion Burnouts . | . . . . . . Robots Hopped 19 | . . 1 4 2 12 Cave-ins Triggered . | . . . . . . Exploration Rate (%) 36 | 6 57 24 55 68 9 Regions Visited 5 Branch Regions . Pre-discovered Areas . | . . . . . . Known Exits Taken 1 | . . . 1 . . Unknown Exits Taken 3 | 1 1 1 . . . Scrap Searched . | . . . . . . Spaces Dug . | . . . . . . Terrain Destroyed . | . . . . . . Melee . | . . . . . . Projectile . | . . . . . . AOE . | . . . . . . Terrain Rammed . | . . . . . . Walls Destroyed . | . . . . . . Machines Disabled . | . . . . . . Actions | -11 -10 -9 -8 -8 -7 --------- Run | Yrd Mat Mat Mat Gar Fac Total 3217 | 60 425 195 505 1540 492 Wait 85 | . 34 1 5 42 3 Move 2739 | 53 349 169 460 1279 429 Hop 19 | . . 1 4 2 12 Pick Up 18 | 1 5 6 4 1 1 Fast Attach 27 | 6 5 5 3 5 3 Attach 16 | . 1 . 3 9 3 Detach 11 | . . 3 2 3 3 Swap 9 | . . 1 3 5 . Drop 13 | . . 7 4 1 1 Fire 130 | . 30 2 17 77 4 Melee 20 | . . . . . 20 Ram 1 | . 1 . . . . Kick . | . . . . . . Crush . | . . . . . . Escape Stasis 116 | . . . . 116 . Rewire 13 | . . . . . 13 Trap . | . . . . . . Miscellaneous . | . . . . . . Route ------- -11/Scrapyard -10/Materials (discovered 3 exits: [*Mat x2] / [*Min]) -9/Materials -8/Materials -8/Garrison (discovered 3 exits: [*Fac x3]) -7/Factory History --------- Turn | Location | Event 15 | -11/Scrapyard | Discovered new exit (range 15) 76 | -11/Scrapyard | Entered Materials 85 | -10/Materials | Discovered new exit (range 15) 305 | -10/Materials | Build established: Mutant 334 | -10/Materials | Discovered new exit (range 15) 473 | -10/Materials | Discovered new exit (range 9) 522 | -10/Materials | Entered another Materials area 522 | -9/Materials | Evolved 2 slots: Propulsion x1, Utility x1 674 | -9/Materials | Discovered new exit (range 4) 678 | -9/Materials | Entered another Materials area 678 | -8/Materials | Evolved 2 slots: Propulsion x2 883 | -8/Materials | Identified exit to Garrison 883 | -8/Materials | Entered Garrison 985 | -8/Garrison | Build established: Sprinter 1001 | -8/Garrison | Destroyed 7 combat bots 1017 | -8/Garrison | Triggered checkpoint 1053 | -8/Garrison | Triggered checkpoint 1053 | -8/Garrison | Discovered new exit (range 10) 1083 | -8/Garrison | Core integrity fell below 50% 1116 | -8/Garrison | Lost 3 parts (2p1w) 1186 | -8/Garrison | Discovered new exit (range 15) 1195 | -8/Garrison | Destroyed 7 combat bots 1271 | -8/Garrison | Discovered new exit (range 11) 1307 | -8/Garrison | Attempted to access garrison exit controls, blocked by remote lockdown 1477 | -8/Garrison | Triggered checkpoint 1507 | -8/Garrison | Core integrity fell below 20% 1507 | -8/Garrison | Triggered checkpoint 1540 | -8/Garrison | Lost 4 parts (1p1n2w) 1547 | -8/Garrison | Destroyed 7 combat bots 1647 | -8/Garrison | Entered Factory 1647 | -7/Factory | Evolved 2 slots: Power x1, Propulsion x1 1729 | -7/Factory | Garrison activated, responded to threat 1757 | -7/Factory | Lost 5 parts (3n2u) 1852 | -7/Factory | Core integrity fell below 50% 1867 | -7/Factory | Core integrity fell below 20% 1873 | -7/Factory | Destroyed by S-27 Virus with Autogun Last Messages --------------- 01729_ ALERT: Activating Garrison Access F002. 01755_ Acquired Adv. Targeting Computer. 01756_ Acquired Hvy. Missile Launcher. 01760_ W-25 Informer sends out distress signal. 01772_ Lgt. Nuclear Core destroyed. 01786_ K-01 Serf cleans the Fusion Modulator. 01818_ Lgt. Nuclear Core destroyed. 01819_ Acquired Spear. 01824_ Flight Unit destroyed. 01830_ Hvy. Missile Launcher destroyed. 01830_ S-27 Virus destroyed. 01838_ Imp. Flight Unit destroyed. 01840_ Destroyed VTOL Module. 01843_ S-27 Virus destroyed. 01853_ Imp. Flight Unit destroyed. 01855_ G-47 Trooper destroyed. 01863_ S-27 Virus destroyed. 01865_ S-27 Virus suffers critical hit (Impale). 01865_ Destroyed VTOL Module. 01865_ S-27 Virus destroyed. Map ----- +----------------------------------------------------+ | ????????????????????????????????? ?????????????? | | ????????????????????????????????? ?????????????? | | ????????????????????????????????? ?????????????? | | ????????????????????????????????? ?????????????? | | ????????????????????????????????? ?????????????? | | ?????????????????????????????????# #???????????### | | ??????????????????????????????#### #???????????# | | ???????????????????????????????/ ???????????# | | ???????????????????????????????# #???????????# | | ???????????????????????????????# #???????????# | | ???????????????????????????????? #???????????#=! | | ?????????????????????????????????# #############%% | | ?????????????????????????????????# += | | ?????????????????????????????????# ####### | | ?????????????????????????????????# #?????# | | ??????????????????? ?????????????# #?????# | | ??????????????????## #???????????# #?????# | | ??????????????????? ########### #?????# | | ???????????????????? // #?????### | | ???????????????????? / #???????? | | ???????????????????? ! """ +???????? | | ?????????????????????? #### ^ """ #???????? | | ???????????????????######## """ #???????? | | ???????????????????# # /!/ +???????? | | ???????????????????# *=# ! #???????? | | ???????????????????# %@# !/ ######### | | ???????????????????# !%%p[ | | ???????????????????# =%#=[""" """ ######## | | ???????????????????# %=#*="""T""" #?# # | | ???????????????????# s############## #?#"" + | | ???????????????????# #???????????? #"T ## | | ???????????????????# s #???????????? #"" !#? | | ???????????????????#!![ +???????????? # #? | | ???????????????????#![[ #???????????? # #? | | ???????????????????#![ ????????????? ! # ]#? | | ???????????????????# ?????????????##### = #? | | ???????????????????#######?????????????????# #? | | ???????????????????????????????????????????######? | | ?????????????????????????????????????????????????? | | ?????????????????????????????????????????????????? | | ?????????????????????????????????????????????????? | | ?????????????????????????????????????????????????? | | ?????????????????????????????????????????????????? | | ?????????????????????????????????????????????????? | | ?????????????????????????????????????????????????? | | ?????????????????????????????????????????????????? | | ?????????????????????????????????????????????????? | | ?????????????????????????????????????????????????? | | ?????????????????????????????????????????????????? | | ?????????????????????????????????????????????????? | +----------------------------------------------------+ Best States ------------- Heat Dissipation 34 Energy Generation 23 Energy Capacity 800 Matter Stores 300 Matter Capacity 300 Sight Range 16 Terrain Scan Density 10 Base Temperature (-) 100 Armor Coverage 150 Evasion (%) 65 Targeting Accuracy 8 Item Schematics ----------------- None Robot Schematics ------------------ None Fabricated ------------ Nothing Alien Tech Used ----------------- None Achievements -------------- None Challenges ------------ None Game ------ Seed WardroneSlugAutogun Manual? 0 Play Time 00:32:50 Cumulative 10.4 hours Start 2024.04.26 @ 10:52:45 End 2024.04.26 @ 13:11:00 Sessions 1 Manual Loads 0 Difficulty Rogue Special Mode None Game No. 18 Rogue 18 Adventurer 0 Explorer 0 Win Type - Total 0 Types 0/0/0/0/0/0/0/0/0 Lore% 10 Gallery% 21 Achievement% 19 Wizard Run 0 Options --------- Layout 0 ASCII 0 Keyboard 1 Movement Numpad Keybinds 0 Fullscreen 1 Font 24/X11 Map View 76x50 Zoom Use 0% Tactical HUD 1 Map Filters NONE Filters NONE Steam 1 RUN: 94ac33fe-b67f-4a85-ab0b-b9877900df82